bitfinex/quotes_SOLUSD_20240725
["timestamp","ask_amount","ask_price","bid_price","bid_amount"]
[1721939942499,5.9446,168.22,168.15,46.9443373]
[1721939942699,1.48653494,168.21,168.15,46.9443373]
[1721939942911,1.48653433,168.21,168.15,46.9443373]
[1721939943093,0.7830015,168.23,168.16,1.94422167]
[1721939943498,2.26939491,168.23,168.16,1.94422167]
[1721939943804,5.9446,168.22,168.16,1.94422167]
[1721939944009,1.48653304,168.21,168.16,1.94422167]
[1721939944309,6.7273015,168.23,168.16,1.94422167]
[1721939944519,8.21383339,168.23,168.16,1.94422167]
[1721939944707,2.26953339,168.23,168.16,1.94422167]
[1721939945099,5.9446,168.22,168.16,1.94422167]
[1721939945495,0.7830015,168.23,168.17,6.417]
[1721939945807,0.7830015,168.23,168.17,8.36110606]
[1721939946923,5.9446,168.22,168.17,1.94410606]
[1721939947216,1.48652298,168.21,168.17,1.94410606]
[1721939947823,6.7273015,168.23,168.17,1.94410606]
[1721939948216,8.21383318,168.23,168.17,1.94410606]
[1721939948421,8.21383318,168.23,168.14,16.5014]
[1721939948422,2.26953318,168.23,168.13,6.417]
[1721939949119,5.9453,168.2,168.14,1.94445294]
[1721939949507,2.26953318,168.23,168.14,1.94445294]
[1721939949706,5.9451,168.21,168.14,1.94445294]
[1721939949904,5.9449,168.21,168.14,1.94445294]
[1721939950121,2.26953318,168.23,168.14,1.94445294]
[1721939950431,5.9446,168.22,168.14,1.94445294]
[1721939950718,1.48654034,168.21,168.14,1.94445294]
[1721939950920,2.26971641,168.23,168.14,1.94445294]
[1721939951098,8.21391641,168.23,168.14,1.94445294]
[1721939951504,2.26971641,168.23,168.14,1.94445294]
[1721939952113,0.7830015,168.23,168.14,1.94445294]
[1721939952506,0.7830015,168.23,168.16,16.3867]
[1721939952704,0.7830015,168.23,168.17,3.13300313]
[1721939953032,0.7830015,168.23,168.18,3.13282064]
[1721939953242,0.7830015,168.23,168.19,1.94387488]
[1721939953531,0.7830015,168.23,168.19,21.94387488]
[1721939953735,0.7830015,168.23,168.2,45.0]
[1721939953908,0.7830015,168.23,168.2,46.94375931]
[1721939954324,0.7830015,168.23,168.2,1.94375931]
[1721939955935,5.9446,168.22,168.2,1.94375931]
[1721939956109,0.7830015,168.23,168.16,16.3867]
[1721939956446,0.7830015,168.23,168.17,1.94410606]
[1721939956737,2.26961087,168.23,168.17,1.94410606]
[1721939957029,2.26961087,168.23,168.12,15.7739]
[1721939957030,5.945,168.21,168.12,15.7739]
[1721939957232,7.43206534,168.2,168.12,17.71858425]
[1721939957413,5.9448,168.22,168.13,1.94456859]
[1721939957616,22.26981654,168.23,168.13,1.94456859]
[1721939957617,0.7830015,168.23,168.13,1.94456859]
[1721939958122,0.7830015,168.23,168.14,28.39913027]
[1721939958429,0.7830015,168.23,168.15,23.13314445]
[1721939958637,0.7830015,168.23,168.16,1.94422167]
[1721939958952,0.7830015,168.23,168.16,46.94422167]
[1721939959230,0.7830015,168.23,168.18,6.4244]
[1721939959442,0.7830015,168.23,168.19,68.13251823]
[1721939959737,0.7830015,168.23,168.2,1.94375931]
[1721939960117,0.7830015,168.23,168.2,17.48225931]
[1721939960319,0.7830015,168.23,168.21,65.0]
[1721939960631,0.7830015,168.23,168.22,1.94352822]
[1721939965528,0.7830015,168.23,168.22,46.94352822]
[1721939974438,15.1328,168.32,168.22,46.94352822]
[1721939974644,1.48553987,168.31,168.22,46.94352822]
[1721939974944,1.48553987,168.31,168.23,20.0]
[1721939975124,1.48553987,168.31,168.24,46.94329717]
[1721939975322,15.1328,168.32,168.25,1.94318167]
[1721939976227,15.1328,168.32,168.25,21.94318167]
[1721939976443,6.5508,168.34,168.26,45.0]
[1721939976737,1.48536344,168.33,168.27,1.94295071]
[1721939977617,1.48533907,168.32,168.27,1.94295071]
[1721939978041,8.03633439,168.34,168.27,1.94295071]
[1721939978339,1.48568591,168.33,168.27,1.94295071]
[1721939978640,5.941,168.32,168.23,20.0]
[1721939978838,5.941,168.32,168.24,1.94329717]
[1721939979244,7.42675853,168.32,168.24,1.94329717]
[1721939979441,1.48575853,168.32,168.24,1.94329717]
[1721939979746,7.42685853,168.32,168.24,1.94329717]
[1721939980119,1.48575853,168.32,168.24,1.94329717]
[1721939981018,7.42642371,168.33,168.24,1.94329717]
[1721939981223,6.5508,168.34,168.24,1.94329717]
[1721939981433,5.9411,168.32,168.24,1.94329717]
[1721939981629,1.48578979,168.33,168.24,1.94329717]
[1721939981825,12.4912,168.34,168.24,1.94329717]
[1721939982038,1.48572219,168.33,168.24,1.94329717]
[1721939982219,12.4912,168.34,168.24,1.94329717]
[1721939982421,1.48571275,168.33,168.24,1.94329717]
[1721939982638,12.4912,168.34,168.24,1.94329717]
[1721939982840,1.48564958,168.33,168.24,1.94329717]
[1721939983033,6.5508,168.34,168.24,46.94329717]
[1721939983350,1.48552383,168.33,168.24,46.94329717]
[1721939983550,6.5508,168.34,168.24,46.94329717]
[1721939983726,1.48548526,168.33,168.25,20.0]
[1721939984045,15.2618,168.36,168.26,45.0]
[1721939984253,1.48534944,168.35,168.27,20.0]
[1721939984428,262.725,168.38,168.27,27.56347208]
[1721939984620,262.725,168.38,168.29,27.21]
[1721939984823,6.625,168.38,168.3,46.94260438]
[1721939985019,6.625,168.38,168.31,3.13057308]
[1721939985242,15.8960015,168.4,168.32,1.94237355]
[1721939986257,0.7830015,168.4,168.33,1.18792404]
[1721939986430,0.7830015,168.4,168.33,45.0]
[1721939986626,0.7830015,168.4,168.32,29.15237355]
[1721939987440,0.7830015,168.4,168.33,45.0]
[1721939987744,0.7830015,168.4,168.34,1.94214279]
[1721939988145,0.7830015,168.4,168.34,3.12990264]
[1721939988966,0.7830015,168.4,168.34,1.94214279]
[1721939989946,0.7830015,168.4,168.34,21.94214279]
[1721939990153,0.7830015,168.4,168.35,45.0]
[1721939990360,0.7830015,168.4,168.36,1.94191207]
[1721939992540,5.9386,168.39,168.36,1.94191207]
[1721939992851,5.9386,168.39,168.3,20.0]
[1721939992852,1.48521376,168.38,168.3,20.0]
[1721939993046,7.78060375,168.39,168.31,1.94248896]
[1721939993355,13.71920375,168.39,168.31,1.94248896]
[1721939993573,22.4469,168.38,168.31,1.94248896]
[1721939993933,1.48530022,168.37,168.31,1.94248896]
[1721939994135,5.9397,168.36,168.31,1.94248896]
[1721939994352,1.48539835,168.35,168.31,1.94248896]
[1721939994560,17.99330005,168.38,168.31,1.94248896]
[1721939996078,16.5079,168.38,168.31,1.94248896]
[1721939998135,0.7830015,168.4,168.32,1.1879254]
[1721939998353,0.7830015,168.4,168.33,3.13007618]
[1721939998562,0.7830015,168.4,168.34,1.94214279]
[1721939999260,0.7830015,168.4,168.34,21.94214279]
[1721939999439,0.7830015,168.4,168.35,45.0]
[1721939999640,0.7830015,168.4,168.36,1.94191207]
[1721939999838,0.7830015,168.4,168.37,1.18772094]
[1721940000136,0.7830015,168.4,168.38,1.94168141]
[1721940005275,0.7830015,168.4,168.39,1.18750953]
[1721940005457,16.095,168.5,168.39,48.12907564]
[1721940005654,16.095,168.5,168.4,50.33865241]
[1721940005844,16.095,168.5,168.41,46.94133553]
[1721940006048,28.801,168.54,168.42,23.12833812]
[1721940006341,28.8012,168.54,168.43,46.18704811]
[1721940006566,5.9337,168.53,168.43,46.18704811]
[1721940006868,0.7830015,168.56,168.44,20.0]
[1721940007161,0.7830015,168.56,168.45,48.12762783]
[1721940007463,0.7830015,168.56,168.46,50.33747164]
[1721940007668,0.7830015,168.56,168.49,33.746]
[1721940007856,0.7830015,168.56,168.5,48.12684877]
[1721940008061,0.7830015,168.56,168.51,21.94018347]
[1721940008263,0.7830015,168.56,168.52,46.94006834]
[1721940008443,0.7830015,168.56,168.53,1.93995322]
[1721940010573,6.7156015,168.56,168.53,1.93995322]
[1721940010749,5.9341,168.52,168.45,6.5496]
[1721940010943,0.7830015,168.56,168.45,6.5496]
[1721940010944,0.7830015,168.56,168.46,1.94075933]
[1721940011144,5.9333,168.54,168.46,1.94075933]
[1721940011374,5.9352,168.49,168.46,1.94075933]
[1721940011581,5.9346,168.51,168.46,1.94075933]
[1721940011873,1.48391209,168.54,168.46,1.94075933]
[1721940012046,5.9347,168.5,168.46,1.94075933]
[1721940012251,1.48405849,168.49,168.37,52.40964186]
[1721940012570,14.8365,168.51,168.38,1.94168141]
[1721940012777,1.48407287,168.51,168.38,1.94168141]
[1721940013154,5.9358,168.47,168.38,1.94168141]
[1721940013473,5.9365,168.45,168.38,1.94168141]
[1721940013644,5.936,168.47,168.38,1.94168141]
[1721940013846,1.48442166,168.48,168.38,1.94168141]
[1721940014065,22.2289,168.47,168.38,1.94168141]
[1721940014442,5.9362,168.46,168.38,1.94168141]
[1721940014668,28.1646,168.47,168.38,1.94168141]
[1721940014872,22.2289,168.47,168.38,1.94168141]
[1721940015058,15.722,168.47,168.38,1.94168141]
[1721940015263,256.8830015,168.56,168.4,30.52]
[1721940015569,5.933,168.55,168.41,3.12819461]
[1721940015777,0.7830015,168.56,168.42,1.94122026]
[1721940015977,0.7830015,168.56,168.43,1.18684821]
[1721940016143,0.7830015,168.56,168.44,1.94098977]
[1721940016493,0.7830015,168.56,168.45,1.18678226]
[1721940016655,0.7830015,168.56,168.46,1.94075933]
[1721940017160,1.48362282,168.55,168.46,1.94075933]
[1721940017358,2.26679074,168.56,168.46,1.94075933]
[1721940017693,5.933,168.55,168.46,1.94075933]
[1721940018177,5.933,168.55,168.46,21.94075933]
[1721940018373,5.933,168.55,168.47,45.0]
[1721940018575,1.48359594,168.54,168.48,1.94052894]
[1721940019076,2.26667584,168.56,168.48,1.94052894]
[1721940019274,2.26679274,168.56,168.48,1.94052894]
[1721940019450,5.9329,168.55,168.48,1.94052894]
[1721940019649,6.7156015,168.56,168.48,1.94052894]
[1721940019953,0.7830015,168.56,168.49,1.18686126]
[1721940020161,1.48348986,168.55,168.4,21.18679189]
[1721940020475,0.7830015,168.56,168.41,1.94133553]
[1721940020476,5.934,168.52,168.41,1.94133553]
[1721940020686,1.48391172,168.51,168.41,1.94133553]
[1721940020851,5.9358,168.47,168.41,1.94133553]
[1721940021052,5.9354,168.48,168.41,1.94133553]
[1721940021355,5.9344,168.51,168.41,1.94133553]
[1721940022076,5.9347,168.5,168.41,1.94133553]
[1721940022254,5.9351,168.49,168.41,1.94133553]
[1721940022574,5.9358,168.47,168.41,1.94133553]
[1721940022779,1.48430161,168.46,168.41,1.94133553]
[1721940022987,1.48430161,168.45,168.41,1.94133553]
[1721940023778,5.9357,168.48,168.41,1.94133553]
[1721940023995,7.4200463,168.48,168.41,1.94133553]
[1721940024351,5.9351,168.49,168.41,1.94133553]
[1721940024576,48.45,168.53,168.41,1.94133553]
[1721940024791,1.48426175,168.52,168.41,1.94133553]
[1721940024980,1.48415787,168.52,168.41,1.94133553]
[1721940025275,2.2669379,168.56,168.41,1.94133553]
[1721940025480,5.9333,168.54,168.42,1.18705362]
[1721940025671,5.9333,168.54,168.43,3.12815987]
[1721940025975,5.9333,168.54,168.36,20.0]
[1721940025976,5.9333,168.54,168.44,3.12802657]
[1721940026177,5.9333,168.54,168.45,1.94087454]
[1721940026754,1.48379619,168.54,168.45,1.94087454]
[1721940027088,5.9358,168.47,168.45,1.94087454]
[1721940027255,14.8368,168.5,168.35,27.33679337]
[1721940027458,5.9368,168.45,168.36,1.94191207]
[1721940027676,1.48454335,168.44,168.36,1.94191207]
[1721940028065,22.7144,168.48,168.36,1.94191207]
[1721940028381,5.9359,168.47,168.36,1.94191207]
[1721940028592,30.13421957,168.48,168.36,1.94191207]
[1721940028958,5.9358,168.47,168.36,1.94191207]
[1721940029383,16.5499,168.48,168.36,3.12944752]
[1721940029578,5.9346,168.51,168.36,23.12944752]
[1721940029790,15.0758,168.52,168.37,45.0]
[1721940030093,15.0758,168.52,168.38,23.12879292]
[1721940030094,21.01,168.52,168.38,23.12879292]
[1721940030281,21.01,168.52,168.39,1.94156611]
[1721940030282,5.9343,168.51,168.39,1.94156611]
[1721940030483,5.9343,168.51,168.4,1.18715813]
[1721940030792,22.49384785,168.52,168.41,1.94133553]
[1721940030976,320.1650015,168.56,168.42,1.18714826]
[1721940030977,272.6151015,168.56,168.42,1.18714826]
[1721940031176,5.933,168.55,168.43,3.12814178]
[1721940031367,5.933,168.55,168.44,1.94098977]
[1721940031565,5.9333,168.54,168.45,1.18703677]
[1721940031863,17.99889746,168.56,168.46,1.94075933]
[1721940031864,5.9336,168.53,168.46,1.94075933]
[1721940032059,5.934,168.52,168.46,1.94075933]
[1721940032468,5.9344,168.51,168.46,1.94075933]
[1721940033367,23.93149746,168.56,168.46,1.94075933]
[1721940034264,23.93149746,168.56,168.46,3.12774435]
[1721940034679,5.9331,168.55,168.46,1.94075933]
[1721940034970,16.5151015,168.56,168.46,1.94075933]
[1721940035170,17.99869479,168.56,168.46,21.94075933]
[1721940035372,5.9332,168.55,168.46,21.94075933]
[1721940035689,1.48374208,168.54,168.46,21.94075933]
[1721940035869,22.4477015,168.56,168.47,45.0]
[1721940036071,5.9329,168.55,168.48,1.94052894]
[1721940036597,17.99873944,168.56,168.48,1.94052894]
[1721940036904,16.5151015,168.56,168.48,1.94052894]
[1721940037376,0.7830015,168.56,168.49,1.18686979]
[1721940037578,0.7830015,168.56,168.5,1.94029861]
[1721940037771,0.7830015,168.56,168.51,7.24357159]
[1721940037981,0.7830015,168.56,168.52,46.94006834]
[1721940038188,0.7830015,168.56,168.53,1.93995322]
[1721940040797,0.7830015,168.56,168.54,15.1476]
[1721940040979,658.1288,168.69,168.55,49.44116525]
[1721940041176,1.48258777,168.68,168.56,1.93960795]
[1721940041383,1.48257627,168.68,168.56,1.93960795]
[1721940041779,396.1007,168.69,168.57,1.186053]
[1721940042091,5.9285,168.68,168.56,3.12559302]
[1721940042879,1.48255754,168.68,168.56,3.12559302]
[1721940043088,396.1007,168.69,168.57,1.18599042]
[1721940043274,1.48255932,168.68,168.58,1.93937784]
[1721940043586,5.9291,168.66,168.58,1.93937784]
[1721940043789,1.48273504,168.65,168.58,1.93937784]
[1721940043996,7.41143532,168.68,168.58,1.93937784]
[1721940044174,1.48270243,168.67,168.58,1.93937784]
[1721940044795,396.1007,168.69,168.58,1.93937784]
[1721940044972,1.48256774,168.68,168.58,1.93937784]
[1721940045177,396.1007,168.69,168.58,1.93937784]
[1721940045178,1.48251534,168.67,168.58,1.93937784]
[1721940045898,5.9275,168.71,168.58,1.93937784]
[1721940046282,1.48238317,168.7,168.58,1.93937784]
[1721940047584,5.9283,168.69,168.58,1.93937784]
[1721940047787,5.9284,168.68,168.58,1.93937784]
[1721940048102,5.928,168.69,168.58,1.93937784]
[1721940048283,1.48247267,168.69,168.58,3.12535598]
[1721940048492,1.48247267,168.69,168.58,1.93937784]
[1721940048691,7.40951505,168.72,168.58,3.12538988]
[1721940049080,5.9273,168.71,168.59,6.3485]
[1721940049283,7.41004628,168.7,168.6,66.93914778]
[1721940049496,7.41004628,168.7,168.61,1.93903278]
[1721940050013,1.48234628,168.7,168.61,1.93903278]
[1721940050301,7.41073336,168.69,168.61,1.93903278]
[1721940050492,5.9284,168.68,168.61,1.93903278]
[1721940050986,5.928,168.7,168.61,1.93903278]
[1721940051189,1.48246847,168.69,168.61,1.93903278]
[1721940051391,15.6000015,168.73,168.61,1.93903278]
[1721940051392,26.1220485,168.73,168.61,1.93903278]
[1721940051596,20.1954485,168.73,168.61,1.93903278]
[1721940051796,20.1954485,168.73,168.61,46.93903278]
[1721940052108,20.1954485,168.73,168.61,1.93903278]
[1721940052283,20.1954485,168.73,168.61,46.93903278]
[1721940052796,5.9273,168.71,168.61,46.93903278]
[1721940052993,5.927,168.72,168.61,46.93903278]
[1721940053202,20.1954485,168.73,168.62,20.0]
[1721940053413,26.1223485,168.73,168.63,1.9388028]
[1721940053911,26.1220485,168.73,168.63,1.9388028]
[1721940054079,5.927,168.72,168.63,1.9388028]
[1721940054282,1.48231213,168.71,168.63,1.9388028]
[1721940054595,7.40961213,168.71,168.63,1.9388028]
[1721940054906,5.9273,168.71,168.63,1.9388028]
[1721940055107,5.927,168.72,168.63,1.9388028]
[1721940055505,20.19531171,168.73,168.63,1.9388028]
[1721940055506,5.9276,168.7,168.63,1.9388028]
[1721940055716,1.48244903,168.69,168.63,1.9388028]
[1721940055898,1.4824475,168.7,168.63,1.9388028]
[1721940056202,1.48247539,168.71,168.63,1.9388028]
[1721940056409,1.48232749,168.7,168.63,1.9388028]
[1721940057294,23.857,168.72,168.63,1.9388028]
[1721940057295,1.48235674,168.72,168.63,1.9388028]
[1721940058129,5.928,168.69,168.63,1.9388028]
[1721940058404,1.48258065,168.68,168.63,1.9388028]
[1721940058606,25.33952783,168.72,168.63,1.9388028]
[1721940058810,1.48242783,168.72,168.63,1.9388028]
[1721940059209,25.33942783,168.72,168.63,1.9388028]
[1721940060323,17.93,168.71,168.63,1.9388028]
[1721940060498,1.48248148,168.7,168.63,1.9388028]
[1721940060708,7.41008148,168.7,168.63,1.9388028]
[1721940060891,18.7130015,168.73,168.63,1.9388028]
[1721940061092,1.48238623,168.72,168.63,1.9388028]
[1721940061304,25.33958623,168.72,168.63,1.9388028]
[1721940061540,23.8574,168.71,168.63,1.9388028]
[1721940061699,5.9287,168.68,168.63,1.9388028]
[1721940061903,23.8581,168.69,168.63,1.9388028]
[1721940062223,25.34021099,168.71,168.63,1.9388028]
[1721940062406,1.48248153,168.7,168.63,1.9388028]
[1721940062598,7.41018153,168.7,168.63,1.9388028]
[1721940062916,5.928,168.69,168.63,1.9388028]
[1721940063232,1.48248153,168.7,168.63,1.9388028]
[1721940063233,5.9277,168.7,168.63,1.9388028]
[1721940063523,1.48261465,168.72,168.63,1.9388028]
[1721940064113,5.9294,168.65,168.63,1.9388028]
[1721940064309,1.48274742,168.64,168.63,1.9388028]
[1721940064625,1.48266468,168.66,168.59,6.3485]
[1721940064797,5.9298,168.64,168.59,6.3485]
[1721940064997,5.9294,168.65,168.55,7.7831]
[1721940065193,5.9299,168.64,168.56,1.93960795]
[1721940065407,25.34196468,168.66,168.56,1.93960795]
[1721940065804,7.41196468,168.66,168.56,1.93960795]
[1721940066004,5.9293,168.66,168.56,1.93960795]
[1721940066328,5.9293,168.66,168.56,21.93960795]
[1721940067109,17.93,168.66,168.56,21.93960795]
[1721940067305,27.07,168.67,168.56,1.93960795]
[1721940067306,23.8597,168.65,168.56,1.93960795]
[1721940067499,5.9302,168.63,168.56,1.93960795]
[1721940067915,45.0,168.67,168.56,1.93960795]
[1721940068426,5.9294,168.65,168.56,1.93960795]
[1721940068725,1.48276104,168.64,168.56,1.93960795]
[1721940069232,1.48274543,168.64,168.56,1.93960795]
[1721940069530,5.9316,168.59,168.56,1.93960795]
[1721940069712,5.9309,168.61,168.56,1.93960795]
[1721940070307,1.48324245,168.63,168.56,1.93960795]
[1721940070714,5.9305,168.62,168.56,1.93960795]
[1721940070903,7.41344245,168.63,168.56,1.93960795]
[1721940071303,5.9305,168.62,168.56,1.93960795]
[1721940072125,1.48324245,168.63,168.56,1.93960795]
[1721940072505,46.48316289,168.64,168.56,1.93960795]
[1721940072728,28.55316289,168.64,168.56,1.93960795]
[1721940073028,61.30816289,168.64,168.56,1.93960795]
[1721940073410,5.9309,168.61,168.56,1.93960795]
[1721940073731,61.30816289,168.64,168.56,1.93960795]
[1721940073732,17.93,168.62,168.56,1.93960795]
[1721940073937,1.48317719,168.6,168.56,1.93960795]
[1721940074223,5.9305,168.62,168.56,1.93960795]
[1721940074625,1.48318293,168.61,168.56,1.93960795]
[1721940074933,5.9307,168.62,168.56,1.93960795]
[1721940075306,45.0,168.64,168.56,1.93960795]
[1721940075307,7.41398352,168.61,168.56,1.93960795]
[1721940075519,5.9312,168.6,168.56,1.93960795]
[1721940075717,5.9309,168.61,168.56,1.93960795]
[1721940076131,1.48318405,168.6,168.56,1.93960795]
[1721940077005,27.07,168.64,168.56,1.93960795]
[1721940077239,1.48288871,168.65,168.56,1.93960795]
[1721940077406,1.48288871,168.69,168.58,22.2028]
[1721940077609,1.48249106,168.69,168.59,1.93926281]
[1721940077810,5.9291,168.66,168.59,1.93926281]
[1721940078530,1.48249106,168.69,168.59,1.93926281]
[1721940078706,27.07,168.7,168.59,1.93926281]
[1721940078707,28.55257556,168.7,168.59,1.93926281]
[1721940078912,5.9281,168.69,168.59,1.93926281]
[1721940079112,5.9285,168.68,168.59,46.93926281]
[1721940079333,5.9285,168.68,168.59,1.93926281]
[1721940079535,1.48253673,168.67,168.59,1.93926281]
[1721940079712,1.48253673,168.67,168.59,46.93926281]
[1721940080216,5.9281,168.69,168.59,46.93926281]
[1721940080832,5.9284,168.68,168.59,46.93926281]
[1721940081722,1.48248998,168.67,168.59,46.93926281]
[1721940082119,5.9288,168.67,168.59,46.93926281]
[1721940082319,5.9284,168.68,168.59,46.93926281]
[1721940082525,5.9274,168.71,168.59,48.12525049]
[1721940082714,5.9277,168.7,168.6,20.0]
[1721940083031,5.9277,168.7,168.61,46.93903278]
[1721940083228,5.9277,168.7,168.62,1.93891778]
[1721940083427,5.9282,168.69,168.62,1.93891778]
[1721940083639,1.48230882,168.68,168.62,1.93891778]
[1721940083838,1.48230896,168.67,168.62,1.93891778]
[1721940084047,5.9284,168.68,168.62,1.93891778]
[1721940084220,5.9288,168.67,168.62,1.93891778]
[1721940084421,1.48267242,168.66,168.62,1.93891778]
[1721940084631,5.9297,168.65,168.58,22.2028]
[1721940084833,5.9298,168.64,168.58,22.2028]
[1721940085145,1.48267242,168.66,168.5,1.1863488]
[1721940085146,5.9305,168.62,168.5,1.1863488]
[1721940085318,27.07,168.67,168.55,1.18647373]
[1721940085639,1.48259778,168.69,168.57,22.2291]
[1721940085935,5.9277,168.7,168.58,3.12532324]
[1721940086143,5.9277,168.7,168.59,1.93926281]
[1721940086338,5.9282,168.69,168.59,1.93926281]
[1721940086847,5.9284,168.68,168.6,1.1860275]
[1721940087026,5.9284,168.68,168.6,3.12517528]
[1721940087220,5.9284,168.68,168.6,23.12517528]
[1721940087429,5.928,168.69,168.61,1.93903278]
[1721940087943,1.4824319,168.7,168.61,1.93903278]
[1721940088124,407.57,168.71,168.61,1.93903278]
[1721940088325,1.48233758,168.7,168.61,21.93903278]
[1721940089119,407.57,168.71,168.61,21.93903278]
[1721940089817,1.48222609,168.7,168.62,45.0]
[1721940090041,1.48222609,168.7,168.63,21.9388028]
[1721940090237,1.48222609,168.7,168.64,1.93868784]
[1721940090440,27.07,168.71,168.64,1.93868784]
[1721940090640,1.48231897,168.72,168.64,1.93868784]
[1721940091437,6.7096015,168.73,168.64,1.93868784]
[1721940091646,2.26521906,168.73,168.65,22.6757]
[1721940091845,0.7830015,168.73,168.66,1.93845794]
[1721940092745,0.7830015,168.73,168.67,1.18550434]
[1721940093046,0.7830015,168.73,168.65,22.6757]
[1721940093047,0.2830015,168.73,168.68,1.9382281]
[1721940095629,0.2830015,168.73,168.69,1.18545852]
[1721940095832,0.2830015,168.73,168.69,3.12357172]
[1721940096254,0.2830015,168.73,168.7,1.93799832]
[1721940096460,14.8064,168.85,168.71,7.1092]
[1721940096461,256.1,168.84,168.71,7.1092]
[1721940096628,15.288,168.87,168.74,27.07]
[1721940096827,10.68582483,168.86,168.75,21.9374241]
[1721940097029,23.7622,168.86,168.76,1.93730929]
[1721940097230,1.48110636,168.85,168.76,1.93730929]
[1721940097631,7.40380636,168.85,168.76,1.93730929]
[1721940097834,19.32110636,168.85,168.76,1.93730929]
[1721940098037,1.48110636,168.85,168.76,1.93730929]
[1721940098343,19.32120559,168.86,168.76,1.93730929]
[1721940098530,1.48109699,168.85,168.76,1.93730929]
[1721940099335,17.84,168.84,168.76,1.93730929]
[1721940099657,42.358,168.87,168.76,1.93730929]
[1721940099658,1.48130802,168.83,168.76,1.93730929]
[1721940099860,1.4812845,168.82,168.76,1.93730929]
[1721940100063,5.9243,168.8,168.76,1.93730929]
[1721940100236,5.9256,168.76,168.71,7.1092]
[1721940100440,17.84,168.8,168.71,7.1092]
[1721940100637,17.84,168.82,168.71,7.1092]
[1721940100943,1.48159705,168.79,168.71,9.04708345]
[1721940101537,7.40489169,168.83,168.72,1.93776859]
[1721940101736,1.4814204,168.82,168.72,1.93776859]
[1721940101938,17.84,168.81,168.72,1.93776859]
[1721940102137,1.48169285,168.8,168.72,1.93776859]
[1721940102446,1.48164675,168.8,168.72,1.93776859]
[1721940102644,1.4816478,168.79,168.72,1.93776859]
[1721940102851,7.4064478,168.79,168.72,1.93776859]
[1721940103051,1.4816478,168.79,168.72,1.93776859]
[1721940103762,1.48162182,168.79,168.72,1.93776859]
[1721940104066,17.84,168.78,168.72,1.93776859]
[1721940104266,1.48185899,168.77,168.72,1.93776859]
[1721940104439,1.48184504,168.76,168.72,1.93776859]
[1721940104639,1.48184504,168.78,168.72,1.93776859]
[1721940104833,1.48178659,168.79,168.72,1.93776859]
[1721940106142,19.32169794,168.8,168.72,1.93776859]
[1721940106454,1.48161906,168.79,168.72,1.93776859]
[1721940107458,19.32168293,168.8,168.72,1.93776859]
[1721940107661,1.48168293,168.8,168.72,1.93776859]
[1721940107854,28.55165612,168.81,168.72,1.93776859]
[1721940108049,1.48165612,168.81,168.72,1.93776859]
[1721940108849,19.32136876,168.84,168.72,1.93776859]
[1721940109045,17.84,168.83,168.72,1.93776859]
[1721940109453,1.48136982,168.82,168.72,1.93776859]
[1721940109767,25.24516982,168.82,168.72,1.93776859]
[1721940110473,5.9238,168.81,168.72,1.93776859]
[1721940110765,1.48160787,168.8,168.72,1.93776859]
[1721940110955,17.84,168.81,168.72,1.93776859]
[1721940111157,1.48152645,168.8,168.72,1.93776859]
[1721940111365,23.7638,168.81,168.72,1.93776859]
[1721940111549,17.84,168.81,168.72,1.93776859]
[1721940112068,17.84,168.79,168.72,1.93776859]
[1721940112247,19.32179477,168.78,168.67,22.0428]
[1721940112452,25.24669477,168.78,168.68,1.9382281]
[1721940112675,19.32179477,168.78,168.68,1.9382281]
[1721940112869,25.24689477,168.78,168.68,1.9382281]
[1721940113073,17.84,168.77,168.68,1.9382281]
[1721940113384,25.24784315,168.76,168.68,1.9382281]
[1721940114369,1.48194315,168.76,168.68,1.9382281]
[1721940114563,25.24754315,168.76,168.68,1.9382281]
[1721940114770,1.48187636,168.76,168.68,1.9382281]
[1721940115276,19.32191248,168.77,168.68,1.9382281]
[1721940115465,1.48170129,168.78,168.68,1.9382281]
[1721940115773,27.07,168.81,168.68,1.9382281]
[1721940115774,1.48155184,168.8,168.68,1.9382281]
[1721940116162,19.3215506,168.79,168.68,1.9382281]
[1721940116347,17.84,168.77,168.68,1.9382281]
[1721940116549,7.40702565,168.78,168.68,1.9382281]
[1721940116757,5.9252,168.77,168.68,1.9382281]
[1721940117177,1.48182806,168.76,168.68,1.9382281]
[1721940117470,17.84,168.8,168.69,1.18546731]
[1721940117674,19.32153143,168.8,168.7,1.93799832]
[1721940117867,1.48153143,168.79,168.7,1.93799832]
[1721940118048,17.84,168.8,168.7,1.93799832]
[1721940118254,19.32153114,168.79,168.7,1.93799832]
[1721940118875,25.24633114,168.79,168.7,1.93799832]
[1721940119079,17.84,168.78,168.7,1.93799832]